bitfinex/quotes_SOLUSD_20220104
["timestamp","ask_amount","ask_price","bid_price","bid_amount"]
[1641272263808,1.2711,166.91,166.82,1.2517]
[1641272264007,1.2711,166.91,166.82,1.5117]
[1641272264209,1.2711,166.91,166.82,2.0117]
[1641272266710,1.2711,166.91,166.82,1.7517]
[1641272268013,1.2711,166.91,166.82,2.0117]
[1641272270616,1.2711,166.91,166.82,1.7517]
[1641272272016,1.2711,166.91,166.82,2.0117]
[1641272274622,1.2711,166.91,166.82,1.7517]
[1641272274823,1.5311,166.91,166.82,1.7517]
[1641272276024,1.5311,166.91,166.82,2.0117]
[1641272278829,1.2711,166.91,166.82,2.0117]
[1641272279531,1.5311,166.91,166.82,2.0117]
[1641272289876,1.5311,166.91,166.82,0.5]
[1641272290077,1.5311,166.91,166.81,23.994]
[1641272291379,0.5,166.81,166.77,23.558]
[1641272291579,9.06,166.81,166.77,23.558]
[1641272291978,9.82,166.81,166.77,23.558]
[1641272292379,23.14488311,166.8,166.77,23.558]
[1641272292581,23.40488311,166.8,166.77,23.558]
[1641272293782,23.90488311,166.8,166.77,23.558]
[1641272293983,23.40488311,166.8,166.77,23.558]
[1641272295783,23.14488311,166.8,166.76,77.7375]
[1641272296085,23.14488311,166.8,166.76,77.9975]
[1641272296483,23.40488311,166.8,166.76,77.7375]
[1641272296683,23.90488311,166.8,166.76,77.7375]
[1641272298183,23.40488311,166.8,166.76,77.7375]
[1641272299586,23.40488311,166.8,166.76,77.2375]
[1641272299789,9.06,166.81,166.76,77.2375]
[1641272300311,9.06,166.81,166.76,77.7375]
[1641272300510,9.06,166.81,166.76,77.2375]
[1641272300910,9.06,166.81,166.76,77.7375]
[1641272301115,9.32,166.81,166.76,77.7375]
[1641272301510,9.32,166.81,166.76,77.2375]
[1641272301912,9.32,166.81,166.76,77.7375]
[1641272303113,9.32,166.81,166.76,0.5]
[1641272303312,9.32,166.81,166.74,30.80681344]
[1641272303912,9.06,166.81,166.74,30.80681344]
[1641272304314,9.06,166.81,166.74,0.52]
[1641272304517,24.212,166.8,166.74,0.52]
[1641272304713,2.96753829,166.79,166.74,0.02]
[1641272305315,3.22753829,166.79,166.74,0.02]
[1641272306317,3.22753829,166.79,166.71,28.63832389]
[1641272306615,3.22753829,166.79,166.71,28.65832389]
[1641272306814,3.22753829,166.79,166.71,30.08501757]
[1641272307014,2.96753829,166.79,166.71,30.08501757]
[1641272307415,2.96753829,166.79,166.71,30.34501757]
[1641272308014,53.19881815,166.8,166.71,30.34501757]
[1641272308015,24.212,166.8,166.71,30.34501757]
[1641272308215,24.212,166.8,166.71,30.32501757]
[1641272308417,24.472,166.8,166.71,30.32501757]
[1641272309617,24.212,166.8,166.71,30.32501757]
[1641272315926,0.5,166.81,166.71,30.32501757]
[1641272316125,0.5,166.81,166.71,53.06691757]
[1641272316928,0.5,166.81,166.72,8.56]
[1641272317425,0.5,166.81,166.73,1.42669368]
[1641272317925,0.5,166.81,166.73,2.18669368]
[1641272318327,0.5,166.81,166.74,1.42669368]
[1641272318528,0.5,166.81,166.75,30.83279939]
[1641272318930,0.5,166.81,166.76,1.42669368]
[1641272319329,0.5,166.81,166.76,2.18669368]
[1641272319828,0.5,166.81,166.77,1.42669368]
[1641272320028,0.5,166.81,166.77,1.68669368]
[1641272320229,0.5,166.81,166.77,2.18669368]
[1641272320430,0.5,166.81,166.78,1.42669368]
[1641272320630,0.5,166.81,166.79,6.06439992]
[1641272320831,0.5,166.81,166.79,6.56439992]
[1641272321032,0.5,166.81,166.79,6.82439992]
[1641272321834,0.5,166.81,166.79,8.2510936]
[1641272323135,0.5,166.81,166.79,37.91385995]
[1641272330071,0.5,166.81,166.79,7.4910936]
[1641272330369,0.5,166.81,166.79,6.06439992]
[1641272331970,0.5,166.81,166.79,6.32439992]
[1641272332272,0.5,166.81,166.79,6.82439992]
[1641272332471,0.5,166.81,166.79,6.32439992]
[1641272334475,0.5,166.81,166.79,6.06439992]
[1641272335878,0.5,166.81,166.79,6.32439992]
[1641272337381,0.5,166.81,166.79,6.82439992]
[1641272337578,2.78102335,166.86,166.8,1.42669368]
[1641272337777,30.02972964,166.87,166.8,1.42669368]
[1641272337977,30.02972964,166.87,166.8,2.18669368]
[1641272338377,30.02972964,166.87,166.81,1.42669368]
[1641272338579,30.02972964,166.87,166.81,1.68669368]
[1641272338777,30.02972964,166.87,166.81,2.18669368]
[1641272338977,30.02972964,166.87,166.82,1.42669368]
[1641272339380,30.02972964,166.87,166.82,2.18669368]
[1641272340778,30.02972964,166.87,166.77,9.9312]
[1641272340979,22.9762,166.86,166.77,9.32]
[1641272342281,22.9762,166.86,166.77,10.74669368]
[1641272345588,30.02972964,166.87,166.77,10.74669368]
[1641272347385,30.02972964,166.87,166.77,19.69699368]
[1641272347589,30.02972964,166.87,166.77,18.0103]
[1641272347889,30.52972964,166.87,166.77,0.5]
[1641272348087,24.5852,166.86,166.77,0.5]
[1641272348288,24.5852,166.86,166.75,1.92669368]
[1641272348491,24.8452,166.86,166.75,1.42669368]
[1641272348689,24.8452,166.86,166.75,1.92669368]
[1641272348890,24.8452,166.86,166.75,2.18669368]
[1641272349890,24.8452,166.86,166.75,1.92669368]
[1641272351499,24.8452,166.86,166.75,2.18669368]
[1641272353415,24.8452,166.86,166.75,0.76]
[1641272353816,24.8452,166.86,166.74,10.6538]
[1641272356921,24.5852,166.86,166.74,10.6538]
[1641272358321,24.8452,166.86,166.74,10.6538]
[1641272358822,24.8452,166.86,166.74,9.06]
[1641272359020,33.9052,166.86,166.72,72.4716]
[1641272359221,33.9052,166.86,166.7,8.58]
[1641272359423,56.6213,166.86,166.7,9.08]
[1641272360326,56.6213,166.86,166.7,9.06]
[1641272361128,56.6213,166.86,166.7,9.32]
[1641272361327,56.6213,166.86,166.71,22.9224]
[1641272361528,56.6213,166.86,166.71,23.1824]
[1641272361730,56.6213,166.86,166.71,23.6824]
[1641272362232,56.6213,166.86,166.72,28.13564487]
[1641272362428,56.6213,166.86,166.72,28.63564487]
[1641272362631,56.6213,166.86,166.72,28.89564487]
[1641272366330,56.6213,166.86,166.72,0.26]
[1641272366530,56.6213,166.86,166.72,0.5]
[1641272367131,56.6213,166.86,166.7,9.32]
[1641272367336,56.6213,166.86,166.71,27.57260951]
[1641272367533,56.6213,166.86,166.71,27.83260951]
[1641272367732,56.6213,166.86,166.72,100.6908]
[1641272367933,56.6213,166.86,166.72,101.1908]
[1641272368131,56.6213,166.86,166.72,101.4508]
[1641272368333,56.6213,166.86,166.73,1.2577]
[1641272368633,56.6213,166.86,166.73,1.5177]
[1641272368833,56.6213,166.86,166.73,2.0177]
[1641272371535,56.6213,166.86,166.73,3.44439368]
[1641272375840,56.6213,166.86,166.73,1.42669368]
[1641272376039,0.32063013,166.85,166.7,1.42669368]
[1641272376240,2.62358263,166.83,166.65,0.02]
[1641272376441,33.5211,166.82,166.65,0.02]
[1641272376839,24.68150727,166.81,166.67,24.71350949]
[1641272377040,8.56,166.8,166.67,24.71350949]
[1641272377240,24.9381,166.79,166.67,24.71350949]
[1641272377443,33.9981,166.79,166.67,25.21350949]
[1641272377641,24.9381,166.79,166.67,25.21350949]
[1641272377843,24.9381,166.79,166.68,1.346]
[1641272378242,3.89218263,166.83,166.68,10.666]
[1641272378443,1.3316,166.81,166.68,10.666]
[1641272391181,28.50073287,166.8,166.68,10.666]
[1641272392387,28.50073287,166.8,166.68,10.406]
[1641272393788,28.50073287,166.8,166.68,10.666]
[1641272394990,1.2659,166.79,166.68,10.666]
[1641272398892,22.5578,166.82,166.68,10.666]
[1641272399293,23.9267,166.82,166.68,10.666]
[1641272400696,23.9267,166.82,166.68,19.6598]
[1641272400896,23.9267,166.82,166.68,10.666]
[1641272401297,24.1867,166.82,166.68,10.666]
[1641272401502,24.1867,166.82,166.68,10.406]
[1641272401898,24.6867,166.82,166.68,10.406]
[1641272402699,24.6867,166.82,166.68,9.906]
[1641272403500,33.2467,166.82,166.68,8.56]
[1641272404102,33.2467,166.82,166.68,9.06]
[1641272405404,33.2467,166.82,166.67,24.71350949]
[1641272406605,24.32579669,166.8,166.67,24.71350949]
[1641272406805,32.4288,166.79,166.64,84.0985]
[1641272407006,34.0038,166.79,166.64,84.8585]
[1641272407206,34.5038,166.79,166.64,84.8585]
[1641272408012,34.5038,166.79,166.65,24.24959439]
[1641272408414,34.5038,166.79,166.65,25.00959439]
[1641272414143,34.5038,166.79,166.65,26.30289439]
[1641272414340,34.2438,166.79,166.65,26.30289439]
[1641272414943,34.2438,166.79,166.65,49.77919439]
[1641272415544,34.5038,166.79,166.65,26.30289439]
[1641272415743,40.76597569,166.79,166.65,26.04289439]
[1641272416544,34.5038,166.79,166.65,26.04289439]
[1641272416944,34.5038,166.79,166.65,26.30289439]
[1641272417469,34.5038,166.79,166.66,23.0631]
[1641272417644,34.2438,166.79,166.66,23.0631]
[1641272417845,34.2438,166.79,166.66,23.8231]
[1641272418946,34.5038,166.79,166.66,23.8231]
[1641272421551,34.5038,166.79,166.66,0.76]
[1641272421949,34.5038,166.79,166.65,25.00959439]
[1641272423254,34.5038,166.79,166.65,26.33609439]
[1641272424651,34.5038,166.79,166.65,25.83609439]
[1641272424851,35.93049368,166.79,166.64,75.5385]
[1641272425050,35.93049368,166.79,166.64,76.0385]
[1641272425452,107.0,166.78,166.6,0.02]
[1641272425651,2.63471731,166.76,166.6,0.02]
[1641272425954,31.1797,166.75,166.6,0.02]
[1641272426351,31.9397,166.75,166.59,24.71191352]
[1641272426554,1.3442,166.74,166.59,24.71191352]
[1641272426752,25.01232799,166.72,166.59,24.71191352]
[1641272426953,2.28575206,166.7,166.59,24.71191352]
[1641272427252,1.3534,166.69,166.59,24.21191352]
[1641272427453,2.1134,166.69,166.59,24.21191352]
[1641272427655,2.1134,166.69,166.59,24.71191352]
[1641272428654,30.64088183,166.68,166.59,24.71191352]
[1641272428954,30.64088183,166.68,166.59,24.97191352]
[1641272429757,1.3081,166.67,166.59,24.97191352]
[1641272431283,0.5,166.69,166.59,24.97191352]
[1641272431458,1.3435,166.69,166.59,24.97191352]
[1641272431858,1.8435,166.69,166.59,24.97191352]
[1641272432058,25.95801837,166.69,166.59,24.97191352]
[1641272432258,26.21801837,166.69,166.59,24.97191352]
[1641272433260,24.2113,166.68,166.59,24.97191352]
[1641272437665,1.2787,166.67,166.59,24.97191352]
[1641272438262,24.2113,166.68,166.59,24.97191352]
[1641272445502,24.7113,166.68,166.59,24.97191352]
[1641272447104,24.2113,166.68,166.59,24.97191352]
[1641272448303,1.3336,166.69,166.59,24.97191352]
[1641272448503,1.8336,166.69,166.59,24.97191352]
[1641272449305,1.8336,166.69,166.59,2.0186]
[1641272450305,1.3336,166.69,166.59,2.0186]
[1641272450505,1.8336,166.69,166.59,2.0186]
[1641272451006,1.3336,166.69,166.59,2.0186]
[1641272451207,1.8336,166.69,166.59,2.0186]
[1641272452609,1.3336,166.69,166.59,2.0186]
[1641272453009,1.8336,166.69,166.59,2.0186]
[1641272453409,2.0936,166.69,166.59,2.0186]
[1641272453612,2.0936,166.69,166.59,1.7586]
[1641272454913,2.0936,166.69,166.59,2.0186]
[1641272458844,2.0936,166.69,166.59,1.7586]
[1641272459043,2.0936,166.69,166.59,1.2586]
[1641272459246,2.0936,166.69,166.59,1.7586]
[1641272460048,2.0936,166.69,166.59,2.0186]
[1641272460245,8.56,166.68,166.59,2.0186]
[1641272460446,0.5,166.68,166.59,2.0186]
[1641272460646,0.76,166.68,166.59,2.0186]
[1641272460847,23.5284,166.68,166.59,2.0186]
[1641272461248,23.2684,166.68,166.6,30.99374749]
[1641272461448,23.2684,166.68,166.6,31.75374749]
[1641272462549,1.3122,166.69,166.6,31.75374749]
[1641272462946,1.5722,166.69,166.6,31.75374749]
[1641272465948,52.06070822,166.7,166.6,31.75374749]
[1641272466148,49.77495616,166.7,166.6,31.75374749]
[1641272466849,1.3157,166.74,166.6,31.75374749]
[1641272467049,1.3157,166.74,166.61,110.2363]
[1641272467350,26.86518678,166.78,166.61,127.20852909]
[1641272467551,2.72148678,166.78,166.62,11.01706853]
[1641272467752,2.72148678,166.78,166.63,8.56]
[1641272467948,2.72148678,166.78,166.64,54.89682811]
[1641272468151,2.72148678,166.78,166.65,8.56]
[1641272468550,2.72148678,166.78,166.66,1.42669368]
[1641272468751,2.72148678,166.78,166.68,23.31778717]
[1641272468950,2.72148678,166.78,166.68,24.07778717]
[1641272469351,2.98148678,166.78,166.68,24.07778717]
[1641272469553,2.98148678,166.78,166.68,47.41378717]
[1641272470254,1.3634,166.77,166.68,48.68148717]
[1641272470451,1.6234,166.77,166.63,1.42669368]
[1641272470653,2.1234,166.77,166.63,9.98669368]
[1641272470951,2.1234,166.77,166.61,78.6396]
[1641272471152,8.56,166.76,166.62,1.2922]
[1641272471353,46.77769863,166.75,166.63,24.23708333]
[1641272471653,47.03769863,166.75,166.63,24.23708333]
[1641272471852,47.53769863,166.75,166.63,24.73708333]
[1641272472453,1.2847,166.74,166.63,24.73708333]
[1641272472855,2.0447,166.74,166.63,24.73708333]
[1641272473254,2.0447,166.74,166.63,0.5]
[1641272473455,2.0447,166.74,166.62,25.0184]
[1641272473655,2.18453595,166.72,166.62,25.0184]
[1641272473856,2.68453595,166.72,166.62,25.0184]
[1641272474054,2.94453595,166.72,166.62,25.0184]
[1641272474255,26.57875458,166.71,166.62,25.0184]
[1641272474458,24.5992,166.7,166.62,25.2784]
[1641272474855,25.3592,166.7,166.62,24.7784]
[1641272475057,25.3592,166.7,166.62,1.5522]
[1641272476460,26.6763,166.7,166.62,1.5522]
[1641272476661,25.9163,166.7,166.62,2.0522]
[1641272476960,25.9163,166.7,166.62,1.5522]
[1641272477562,25.9163,166.7,166.62,1.2922]
[1641272477762,26.4163,166.7,166.62,1.2922]
[1641272477965,26.6763,166.7,166.62,1.2922]
[1641272478662,26.6763,166.7,166.62,1.5522]
[1641272479564,26.6763,166.7,166.62,2.0522]
[1641272480164,26.6763,166.7,166.62,1.5522]
[1641272481065,26.6763,166.7,166.62,2.0522]
[1641272481265,26.6763,166.7,166.62,1.5522]
[1641272481565,26.6763,166.7,166.62,2.0522]
[1641272482065,24.5992,166.7,166.62,2.0522]
[1641272482266,2.18453595,166.72,166.62,2.0522]
[1641272482471,2.94453595,166.72,166.62,26.2996]
[1641272483671,24.0886,166.71,166.62,26.2996]
[1641272483974,24.3486,166.71,166.62,26.2996]
[1641272484172,25.6308,166.71,166.62,26.2996]
[1641272487781,25.3708,166.71,166.62,26.2996]
[1641272488176,25.3708,166.71,166.62,26.0396]
[1641272489076,25.6308,166.71,166.62,26.0396]
[1641272489476,25.6308,166.71,166.62,26.2996]
[1641272489876,25.6308,166.71,166.62,25.7996]
[1641272491405,25.6308,166.71,166.62,26.2996]
[1641272492003,26.1308,166.71,166.62,26.2996]
[1641272492804,26.1308,166.71,166.62,2.0522]
[1641272493408,26.1308,166.71,166.58,0.02]
[1641272493606,8.56,166.7,166.58,0.02]
[1641272494105,9.32,166.7,166.58,0.02]
[1641272494303,9.32,166.7,166.56,30.66678698]
[1641272494706,1.2896,166.69,166.56,30.66678698]
[1641272494904,2.41777476,166.67,166.56,30.66678698]
[1641272495104,26.96437476,166.67,166.56,30.92678698]
[1641272495307,28.95093711,166.66,166.56,30.92678698]
[1641272495508,29.21093711,166.66,166.56,30.92678698]
[1641272495708,24.2096,166.65,166.56,30.92678698]
[1641272495907,24.7096,166.65,166.56,30.92678698]
[1641272496106,24.9696,166.65,166.56,31.42678698]
[1641272498508,1.2565,166.65,166.56,31.42678698]
[1641272498707,3.78017476,166.67,166.56,31.42678698]
[1641272498909,3.78017476,166.67,166.57,23.6924]
[1641272499110,3.78017476,166.67,166.57,23.9524]
[1641272499307,3.78017476,166.67,166.57,24.4524]
[1641272501311,2.41777476,166.67,166.57,24.4524]
[1641272502515,2.41777476,166.67,166.58,1.255]
[1641272502913,2.41777476,166.67,166.58,2.015]
[1641272504314,2.41777476,166.67,166.59,8.56]
[1641272504514,2.41777476,166.67,166.59,8.82]
[1641272504716,2.41777476,166.67,166.59,9.32]
[1641272506517,8.56,166.75,166.59,9.32]
[1641272506718,8.56,166.75,166.59,17.68169368]
[1641272506919,33.11708505,166.78,166.59,26.94012256]
[1641272507120,31.4817,166.78,166.6,78.3176]
[1641272507419,27.25928174,166.77,166.61,8.56]
[1641272507623,28.57308174,166.77,166.63,22.55770052]
[1641272507819,29.07308174,166.77,166.63,31.61770052]
[1641272508019,29.07308174,166.77,166.63,31.87770052]
[1641272508020,29.33308174,166.77,166.63,31.87770052]
[1641272508221,23.5177,166.76,166.63,31.87770052]
[1641272508420,24.0177,166.76,166.64,1.2904]
[1641272508623,24.2777,166.76,166.63,23.31770052]
[1641272509721,1.3201,166.75,166.63,23.31770052]
[1641272509924,1.8201,166.75,166.63,23.31770052]
[1641272510123,2.0801,166.75,166.63,23.31770052]
[1641272510324,2.0801,166.75,166.64,1.2526]
[1641272510525,2.0801,166.75,166.64,1.5126]
[1641272510727,24.1257,166.74,166.64,2.0126]
[1641272511130,24.8857,166.74,166.64,2.0126]
[1641272511727,24.3857,166.74,166.64,2.0126]
[1641272511928,24.8857,166.74,166.64,2.0126]
[1641272512130,1.2888,166.73,166.64,2.0126]
[1641272512732,1.5488,166.73,166.64,2.0126]
[1641272513230,1.5488,166.73,166.64,1.7526]
[1641272514532,1.5488,166.73,166.64,2.0126]
[1641272514933,2.0488,166.73,166.64,2.0126]
[1641272515633,2.0488,166.73,166.64,0.5]
[1641272515933,2.48398881,166.71,166.6,0.02]
[1641272516132,24.8644,166.7,166.6,0.02]
[1641272516338,1.3304,166.69,166.6,0.02]
[1641272518353,1.3304,166.69,166.59,30.85048751]
[1641272521556,1.5904,166.69,166.59,30.85048751]
[1641272521753,1.3304,166.69,166.59,30.85048751]
[1641272521952,1.5904,166.69,166.59,30.59048751]
[1641272522553,1.3304,166.69,166.59,30.59048751]
[1641272522954,24.8644,166.7,166.6,8.56]
[1641272523355,24.8644,166.7,166.6,9.06]
[1641272523554,2.48398881,166.71,166.6,9.32]
[1641272524161,2.48398881,166.71,166.61,1.2498]
[1641272524355,2.48398881,166.71,166.61,1.7498]
[1641272524655,24.6732,166.75,166.61,2.0098]
[1641272524858,24.6732,166.75,166.62,1.42669368]
[1641272525054,24.6732,166.75,166.62,10.24669368]
[1641272525254,24.6732,166.75,166.62,10.74669368]
[1641272525457,24.6732,166.75,166.62,33.3662]
[1641272525655,2.68311553,166.74,166.62,33.3662]
[1641272525856,2.68311553,166.74,166.63,1.2596]
[1641272526057,2.68311553,166.74,166.63,1.5196]
[1641272526357,2.68311553,166.74,166.63,2.0196]
[1641272527357,2.94311553,166.74,166.63,2.0196]
[1641272527756,23.4177,166.73,166.63,0.76]
[1641272527956,23.9177,166.73,166.62,33.3662]
[1641272528156,1.3183,166.72,166.62,34.7315]
[1641272531057,23.4177,166.73,166.62,34.7315]
[1641272531461,24.6973,166.73,166.62,34.7315]
[1641272537967,24.6973,166.73,166.62,36.15819368]
[1641272538166,24.6973,166.73,166.62,34.7315]
[1641272539669,24.6973,166.73,166.62,33.1062]
[1641272539868,25.1973,166.73,166.62,33.1062]
[1641272540066,24.9573,166.73,166.62,33.1062]
[1641272540869,24.9573,166.73,166.62,33.3662]
[1641272541069,24.9573,166.73,166.63,1.2864]
[1641272541472,24.9573,166.73,166.63,2.0464]
[1641272542071,24.6973,166.73,166.63,2.0464]
[1641272543475,24.6973,166.73,166.63,10.6064]
[1641272543675,24.6973,166.73,166.64,1.42669368]
[1641272543876,24.6973,166.73,166.64,1.92669368]
[1641272544075,24.6973,166.73,166.64,2.18669368]
[1641272544276,24.6973,166.73,166.65,1.42669368]
[1641272544477,27.15640546,166.73,166.66,31.12545827]
[1641272544877,27.15640546,166.73,166.67,1.42669368]
[1641272545078,27.15640546,166.73,166.67,1.68669368]
[1641272545375,27.15640546,166.73,166.67,2.18669368]
[1641272545575,27.15640546,166.73,166.67,0.76]
[1641272545976,27.15640546,166.73,166.66,31.88545827]
[1641272547078,24.6973,166.73,166.66,31.88545827]
[1641272547279,24.6973,166.73,166.66,33.31215195]
[1641272547879,24.6973,166.73,166.66,31.88545827]
[1641272548178,2.50165827,166.72,166.66,31.88545827]
[1641272548780,2.50165827,166.72,166.66,33.31215195]
[1641272549078,1.3366,166.77,166.66,33.31215195]
[1641272549280,1.2504,166.76,166.66,31.88545827]
[1641272549880,1.5104,166.76,166.66,31.88545827]
[1641272550082,2.46217733,166.75,166.66,31.88545827]
[1641272551183,1.2555,166.74,166.66,31.88545827]
[1641272551580,1.2555,166.74,166.66,33.31215195]
[1641272551981,1.2555,166.74,166.66,31.88545827]
[1641272552379,1.2555,166.74,166.66,33.31215195]
[1641272552584,1.2555,166.74,166.66,31.88545827]
[1641272556584,1.2555,166.74,166.66,33.31215195]
[1641272556984,1.2555,166.74,166.66,31.88545827]
[1641272558489,1.2555,166.74,166.67,1.42669368]
[1641272558689,2.46217733,166.75,166.67,1.42669368]
[1641272558916,2.46217733,166.75,166.67,2.18669368]
[1641272559114,1.3591,166.74,166.67,2.18669368]
[1641272559514,1.3591,166.74,166.68,1.42669368]
[1641272559914,1.3591,166.74,166.68,2.18669368]
[1641272560418,25.5559,166.77,166.68,2.18669368]
[1641272560616,1.3253,166.76,166.68,2.18669368]
[1641272560816,1.3253,166.76,166.68,0.5]
[1641272561016,2.0853,166.76,166.68,0.5]
[1641272561215,2.0853,166.76,166.65,0.02]
[1641272561216,2.41546133,166.75,166.65,0.02]
[1641272561418,2.91546133,166.75,166.65,0.02]
[1641272561617,3.17546133,166.75,166.65,0.02]
[1641272562016,28.61125799,166.73,166.65,0.02]
[1641272562217,28.61125799,166.73,166.64,31.93663217]
[1641272562619,24.5515,166.72,166.64,31.93663217]
[1641272563223,25.9063,166.72,166.64,31.93663217]
[1641272564117,25.9063,166.72,166.64,2.0759]
[1641272564319,26.1663,166.72,166.64,2.0759]
[1641272565920,25.9063,166.72,166.64,2.0759]
[1641272571623,25.9063,166.72,166.64,3.50259368]
[1641272572224,25.9063,166.72,166.64,2.0759]
[1641272572624,25.9063,166.72,166.64,1.8159]
[1641272574124,25.9063,166.72,166.64,2.0759]
[1641272579130,26.1663,166.72,166.64,0.76]
[1641272579330,32.2693,166.72,166.6,0.02]
[1641272579531,32.7693,166.72,166.6,0.02]
[1641272580333,32.7693,166.72,166.59,25.52299051]
[1641272580734,32.7693,166.72,166.59,26.02299051]
[1641272581634,32.7693,166.72,166.59,26.28299051]
[1641272581833,32.7693,166.72,166.59,25.78299051]
[1641272582332,32.7693,166.72,166.6,1.42669368]
[1641272582534,32.7693,166.72,166.6,1.68669368]
[1641272583335,32.5093,166.72,166.6,0.76]
[1641272583536,26.4063,166.72,166.6,1.92669368]
[1641272583734,26.4063,166.72,166.6,2.18669368]
[1641272584035,26.4063,166.72,166.6,1.92669368]
[1641272584234,26.4063,166.72,166.6,0.5]
[1641272584433,26.4063,166.72,166.59,26.02299051]
[1641272584634,26.6663,166.72,166.59,26.02299051]
[1641272586636,26.4063,166.72,166.59,27.44968419]
[1641272586837,26.6663,166.72,166.59,27.70968419]
[1641272587038,26.6663,166.72,166.6,22.5948]
[1641272587240,26.6663,166.72,166.6,23.8648]
[1641272587438,26.6663,166.72,166.6,24.6248]
[1641272588239,26.6663,166.72,166.6,33.1848]
[1641272588442,26.6663,166.72,166.6,34.61149368]
[1641272593366,26.6663,166.72,166.6,33.1848]
[1641272594365,26.6663,166.72,166.6,32.9248]
[1641272595866,26.6663,166.72,166.6,33.1848]
[1641272597269,25.9063,166.72,166.61,1.42669368]
[1641272597468,25.9063,166.72,166.62,8.56]
[1641272597869,25.9063,166.72,166.62,9.32]
[1641272598268,25.9063,166.72,166.63,1.3535]
[1641272598469,25.9063,166.72,166.63,1.6135]
[1641272598671,25.9063,166.72,166.63,2.1135]
[1641272599469,25.9063,166.72,166.63,24.7835]
[1641272600271,25.9063,166.72,166.64,1.42669368]
[1641272600472,25.9063,166.72,166.64,2.18669368]
[1641272601273,25.9063,166.72,166.65,1.24405036]
[1641272601477,25.9063,166.72,166.66,23.75343659]
[1641272601875,25.9063,166.72,166.66,24.51343659]
[1641272602076,25.9063,166.72,166.66,24.01343659]
[1641272602277,25.9063,166.72,166.66,23.75343659]
[1641272602476,25.9063,166.72,166.66,24.01343659]
[1641272602876,25.9063,166.72,166.66,23.75343659]
[1641272603679,25.9063,166.72,166.65,1.24405036]
[1641272603980,26.1663,166.72,166.65,1.24405036]
[1641272604580,25.9063,166.72,166.65,24.06463652]
[1641272604781,25.9063,166.72,166.65,24.32463652]
[1641272604979,26.1663,166.72,166.65,24.32463652]
[1641272605178,26.1663,166.72,166.65,23.08058616]
[1641272605380,26.1663,166.72,166.65,23.58058616]
[1641272606381,25.9063,166.72,166.65,23.58058616]
[1641272606783,25.9063,166.72,166.65,23.08058616]
[1641272606982,25.9063,166.72,166.65,23.58058616]
[1641272607583,25.9063,166.72,166.66,1.24405036]
[1641272607983,26.1663,166.72,166.66,2.00405036]
[1641272611889,25.9063,166.72,166.66,2.00405036]
[1641272624111,25.9063,166.72,166.67,1.42669368]
[1641272624510,25.9063,166.72,166.68,1.24405036]
[1641272624909,25.9063,166.72,166.68,1.50405036]
[1641272625510,25.9063,166.72,166.68,2.00405036]
[1641272625908,2.41546133,166.75,166.68,2.00405036]
[1641272626110,2.91546133,166.75,166.68,2.00405036]
[1641272627129,2.91546133,166.75,166.68,1.50405036]
[1641272627331,2.91546133,166.75,166.68,2.00405036]
[1641272627828,2.91546133,166.75,166.68,1.50405036]
[1641272628030,4.28336133,166.75,166.68,1.50405036]
[1641272628229,4.28336133,166.75,166.68,2.00405036]
[1641272628732,24.911,166.74,166.68,1.50405036]
[1641272629130,24.411,166.74,166.68,1.50405036]
[1641272629833,24.411,166.74,166.68,2.00405036]
[1641272630232,24.411,166.74,166.68,1.50405036]
[1641272630430,24.411,166.74,166.68,2.00405036]
[1641272643341,3.78336133,166.75,166.68,2.00405036]
[1641272643543,23.4919,166.76,166.69,1.42669368]
[1641272643742,24.774,166.76,166.69,1.42669368]
[1641272643943,24.774,166.76,166.7,1.24405036]
[1641272644343,24.774,166.76,166.7,2.00405036]
[1641272644542,27.69360156,166.76,166.7,2.00405036]
[1641272653849,27.69360156,166.76,166.7,3.43074404]